fUST/lending_fUST_20250628
["ID","MTS","AMOUNT","RATE_DAILY","PERIOD"]
[368294319,1751097044299,-460.0,0.00019452,2]
[368294323,1751097044483,-2555.55,0.00019452,2]
[368294324,1751097044496,-460.0,0.00019452,2]
[368294325,1751097044506,-460.0,0.00019452,2]
[368294326,1751097044515,-460.0,0.00019452,2]
[368294327,1751097044525,-460.0,0.00019452,2]
[368294328,1751097044534,-502.59,0.00019452,2]
[368294329,1751097044543,-460.0,0.00019452,2]
[368294331,1751097044552,-460.0,0.00019452,2]
[368294332,1751097044562,-460.0,0.00019452,2]
[368294333,1751097044571,-460.0,0.00019452,2]
[368294335,1751097044581,-460.0,0.00019452,2]
[368294336,1751097044590,-460.0,0.00019452,2]
[368294337,1751097044600,-1344.01,0.00019452,2]
[368294338,1751097044609,-601.28832938,0.00019452,2]
[368294339,1751097044619,-2037.07,0.00019452,2]
[368294341,1751097044628,-667.02,0.00019452,2]
[368294343,1751097044638,-460.0,0.00019452,2]
[368294344,1751097044647,-415.743074,0.00019452,2]
[368294346,1751097044657,-1253.37,0.00019452,2]
[368294347,1751097044666,-460.0,0.00019452,2]
[368294348,1751097044676,-460.0,0.00019452,2]
[368294349,1751097044686,-460.0,0.00019452,2]
[368294350,1751097044697,-460.0,0.00019452,2]
[368294351,1751097044708,-460.0,0.00019452,2]
[368294352,1751097044720,-460.0,0.00019452,2]
[368294353,1751097044730,-460.0,0.00019452,2]
[368294354,1751097044740,-460.0,0.00019452,2]
[368294355,1751097044749,-460.0,0.00019452,2]
[368294356,1751097044759,-460.0,0.00019452,2]
[368294357,1751097044768,-460.0,0.00019452,2]
[368294358,1751097044778,-460.0,0.00019452,2]
[368294359,1751097044787,-3188.43,0.00019452,2]
[368294360,1751097044796,-460.0,0.00019452,2]
[368294361,1751097044805,-541.05,0.00019452,2]
[368294362,1751097044814,-460.0,0.00019452,2]
[368294363,1751097044823,-1392.9,0.00019452,2]
[368294364,1751097044832,-500.0,0.00019452,2]
[368294365,1751097044841,-460.0,0.00019452,2]
[368294366,1751097044850,-460.0,0.00019452,2]
[368294367,1751097044869,-460.0,0.00019452,2]
[368294368,1751097044882,-1547.24,0.00019452,2]
[368294369,1751097044894,-1296.65,0.00019452,2]
[368294370,1751097044904,-460.0,0.00019452,2]
[368294371,1751097044914,-813.94,0.00019452,2]
[368294372,1751097044924,-460.0,0.00019452,2]
[368294373,1751097044934,-1660.51,0.00019452,2]
[368294374,1751097044944,-500.0,0.00019673,2]
[368294375,1751097044953,-500.0,0.00019673,2]
[368294376,1751097044963,-500.0,0.00019673,2]
[368294377,1751097044973,-500.0,0.00019681,2]
[368294378,1751097044983,-503.40974568,0.00019721,2]
[368294379,1751097044993,-460.0,0.00019726,2]
[368294380,1751097045003,-460.0,0.00019726,2]
[368294381,1751097045012,-460.0,0.00019726,2]
[368294382,1751097045022,-442.89393582,0.00019726,2]
[368294383,1751097045032,-460.0,0.00019726,2]
[368294384,1751097045041,-460.0,0.00019726,2]
[368294385,1751097045051,-552.08,0.00019726,2]
[368294386,1751097045061,-460.0,0.00019726,2]
[368294387,1751097045071,-460.0,0.00019726,2]
[368294388,1751097045080,-460.0,0.00019726,2]
[368294389,1751097045090,-460.0,0.00019726,2]
[368294390,1751097045100,-460.0,0.00019726,2]
[368294391,1751097045109,-460.0,0.00019726,2]
[368294392,1751097045119,-460.0,0.00019726,2]
[368294393,1751097045129,-460.0,0.00019726,2]
[368294394,1751097045138,-500.0,0.00019726,2]
[368294395,1751097045148,-223.20541348,0.00019726,2]
[368294396,1751097045157,-500.0,0.00019726,2]
[368294397,1751097045167,-460.0,0.00019726,2]
[368294398,1751097045177,-460.0,0.00019726,2]
[368294399,1751097045186,-460.0,0.00019726,2]
[368294400,1751097045196,-460.0,0.00019726,2]
[368294401,1751097045206,-460.0,0.00019726,2]
[368294402,1751097045216,-460.0,0.00019726,2]
[368294403,1751097045225,-460.0,0.00019726,2]
[368294404,1751097045235,-734.98,0.00019726,2]
[368294405,1751097045244,-460.0,0.00019726,2]
[368294406,1751097045254,-460.0,0.00019726,2]
[368294407,1751097045263,-460.0,0.00019726,2]
[368294408,1751097045273,-460.0,0.00019726,2]
[368294409,1751097045282,-460.0,0.00019726,2]
[368294410,1751097045292,-460.0,0.00019726,2]
[368294411,1751097045302,-460.0,0.00019726,2]
[368294412,1751097045312,-460.0,0.00019726,2]
[368294413,1751097045321,-460.0,0.00019726,2]
[368294414,1751097045330,-460.0,0.00019726,2]
[368294415,1751097045340,-553.63000719,0.00019726,2]
[368294416,1751097045349,-465.20090635,0.00019726,2]
[368294417,1751097045359,-460.0,0.00019726,2]
[368294418,1751097045368,-4169.62,0.00019726,2]
[368294419,1751097045378,-460.0,0.00019726,2]
[368294420,1751097045387,-460.0,0.00019726,2]
[368294421,1751097045397,-460.0,0.00019726,2]
[368294422,1751097045407,-732.48,0.00019726,2]
[368294423,1751097045416,-460.0,0.00019726,2]
[368294424,1751097045426,-2452.88,0.00019726,2]
[368294425,1751097045435,-649.65,0.00019726,2]
[368294426,1751097045445,-500.0,0.00019726,2]
[368294427,1751097045455,-738.92,0.00019726,2]
[368294428,1751097045464,-1337.25,0.00019726,2]
[368294429,1751097045477,-603.09,0.00019726,2]
[368294430,1751097045486,-301.38249942,0.00019726,2]
[368294431,1751097045498,-460.0,0.00019726,2]
[368294432,1751097045508,-556.47,0.00019726,2]
[368294433,1751097045518,-425.67611252,0.00019726,2]
[368294434,1751097045528,-2178.44,0.00019726,2]
[368294435,1751097045538,-467.6999882,0.00019726,2]
[368294436,1751097045548,-460.0,0.00019726,2]
[368294437,1751097045558,-481.02,0.00019726,2]
[368294438,1751097045567,-460.0,0.00019726,2]
[368294439,1751097045577,-460.0,0.00019726,2]
[368294440,1751097045589,-679.83,0.00019726,2]
[368294441,1751097045599,-1275.64,0.00019726,2]
[368294442,1751097045609,-675.36,0.00019726,2]
[368294443,1751097045620,-460.0,0.00019726,2]
[368294444,1751097045630,-647.34,0.00019726,2]
[368294445,1751097045641,-2143.18,0.00019726,2]
[368294446,1751097045651,-460.0,0.00019726,2]
[368294447,1751097045661,-460.0,0.00019726,2]
[368294448,1751097045671,-460.0,0.00019726,2]
[368294449,1751097045681,-460.0,0.00019726,2]
[368294450,1751097045690,-460.0,0.00019726,2]
[368294451,1751097045701,-460.0,0.00019726,2]
[368294452,1751097045711,-929.5,0.00019726,2]
[368294453,1751097045720,-512.42,0.00019726,2]
[368294454,1751097045730,-460.0,0.00019726,2]
[368294455,1751097045740,-180.27084496,0.00019726,2]
[368294456,1751097045749,-2107.7,0.00019726,2]
[368294458,1751097045760,-460.0,0.00019726,2]
[368294459,1751097045770,-477.23,0.00019726,2]
[368294460,1751097045779,-460.0,0.00019726,2]
[368294461,1751097045789,-929.29,0.00019726,2]
[368294462,1751097045799,-460.0,0.00019726,2]
[368294463,1751097045809,-1835.86,0.00019726,2]
[368294465,1751097045819,-2555.55,0.00019726,2]
[368294466,1751097045829,-460.0,0.00019726,2]
[368294467,1751097045838,-460.0,0.00019726,2]
[368294468,1751097045848,-460.0,0.00019726,2]
[368294469,1751097045857,-460.0,0.00019726,2]
[368294470,1751097045867,-502.59,0.00019726,2]
[368294471,1751097045877,-460.0,0.00019726,2]
[368294472,1751097045887,-460.0,0.00019726,2]
[368294473,1751097045896,-460.0,0.00019726,2]
[368294474,1751097045906,-460.0,0.00019726,2]
[368294475,1751097045915,-1344.01,0.00019726,2]
[368294476,1751097045925,-2037.07,0.00019726,2]
[368294477,1751097045937,-667.02,0.00019726,2]
[368294478,1751097045949,-460.0,0.00019726,2]
[368294479,1751097045959,-1253.37,0.00019726,2]
[368294480,1751097045969,-460.0,0.00019726,2]
[368294481,1751097045979,-460.0,0.00019726,2]
[368294482,1751097045990,-460.0,0.00019726,2]
[368294483,1751097045999,-325.7,0.00019726,2]
[368294484,1751097046009,-460.0,0.00019726,2]
[368294485,1751097046021,-460.0,0.00019726,2]
[368294486,1751097046031,-460.0,0.00019726,2]
[368294487,1751097046040,-460.0,0.00019726,2]
[368294488,1751097046050,-460.0,0.00019726,2]
[368294489,1751097046061,-460.0,0.00019726,2]
[368294490,1751097046071,-3188.43,0.00019726,2]
[368294491,1751097046081,-460.0,0.00019726,2]
[368294492,1751097046091,-541.05,0.00019726,2]
[368294493,1751097046100,-460.0,0.00019726,2]
[368294494,1751097046110,-1392.9,0.00019726,2]
[368294496,1751097046120,-460.0,0.00019726,2]
[368294498,1751097046130,-460.0,0.00019726,2]
[368294500,1751097046140,-460.0,0.00019726,2]
[368294501,1751097046149,-1547.24,0.00019726,2]
[368294503,1751097046159,-1296.65,0.00019726,2]
[368294505,1751097046169,-427.84153915,0.00019726,2]
[368294507,1751097046178,-813.94,0.00019726,2]
[368294508,1751097046188,-460.0,0.00019726,2]
[368294510,1751097046198,-1660.51,0.00019726,2]
[368294512,1751097046207,-501.169435,0.00019836,2]
[368294513,1751097046216,-264.30474659,0.00019836,2]
[368294515,1751097046226,-181.09163339,0.0001985,2]
[368294517,1751097046235,-8642.28967107,0.000199,2]
[368294518,1751097046244,-460.0,0.0002,2]
[368294519,1751097046254,-470.95122266,0.0002,2]
[368294520,1751097046263,-374.41268073,0.0002,2]
[368294522,1751097046273,-270.60241605,0.0002,2]
[368294524,1751097046282,-552.08,0.0002,2]
[368294525,1751097046291,-500.0,0.0002,2]
[368294526,1751097046301,-460.0,0.0002,2]
[368294527,1751097046310,-460.0,0.0002,2]
[368294528,1751097046319,-460.0,0.0002,2]
[368294529,1751097046329,-460.0,0.0002,2]
[368294531,1751097046339,-258.60670793,0.0002,2]
[368294532,1751097046348,-463.50923836,0.0002,2]
[368294534,1751097046358,-460.0,0.0002,2]
[368294536,1751097046367,-460.0,0.0002,2]
[368294537,1751097046376,-460.0,0.0002,2]
[368294538,1751097046386,-460.0,0.0002,2]
[368294539,1751097046395,-460.0,0.0002,2]
[368294540,1751097046405,-460.0,0.0002,2]
[368294541,1751097046414,-460.0,0.0002,2]
[368294542,1751097046424,-734.98,0.0002,2]
[368294543,1751097046434,-460.0,0.0002,2]
[368294544,1751097046444,-460.0,0.0002,2]
[368294545,1751097046453,-460.0,0.0002,2]
[368294546,1751097046463,-460.0,0.0002,2]
[368294547,1751097046472,-460.0,0.0002,2]
[368294548,1751097046481,-460.0,0.0002,2]
[368294549,1751097046491,-460.0,0.0002,2]
[368294550,1751097046501,-160.0,0.0002,3]
[368294551,1751097046511,-460.0,0.0002,2]
[368294552,1751097046520,-4169.62,0.0002,2]
[368294553,1751097046530,-282.4083037,0.0002,2]
[368294554,1751097046539,-460.0,0.0002,2]
[368294555,1751097046549,-460.0,0.0002,2]
[368294556,1751097046559,-732.48,0.0002,2]
[368294557,1751097046569,-460.0,0.0002,2]
[368294558,1751097046579,-2452.88,0.0002,2]
[368294559,1751097046589,-649.65,0.0002,2]
[368294560,1751097046599,-738.92,0.0002,2]
[368294561,1751097046609,-1337.25,0.0002,2]
[368294562,1751097046619,-460.0,0.0002,2]
[368294563,1751097046628,-556.47,0.0002,2]
[368294564,1751097046638,-2178.44,0.0002,2]
[368294565,1751097046647,-460.0,0.0002,2]
[368294566,1751097046657,-481.02,0.0002,2]
[368294567,1751097046667,-460.0,0.0002,2]
[368294568,1751097046676,-460.0,0.0002,2]
[368294569,1751097046686,-679.83,0.0002,2]
[368294570,1751097046695,-1275.64,0.0002,2]
[368294571,1751097046704,-675.36,0.0002,2]
[368294572,1751097046714,-460.0,0.0002,2]
[368294573,1751097046724,-647.34,0.0002,2]
[368294574,1751097046733,-2143.18,0.0002,2]
[368294575,1751097046743,-460.0,0.0002,2]
[368294576,1751097046752,-460.0,0.0002,2]
[368294577,1751097046762,-460.0,0.0002,2]
[368294578,1751097046772,-460.0,0.0002,2]
[368294579,1751097046780,-460.0,0.0002,2]
[368294580,1751097046790,-929.5,0.0002,2]
[368294581,1751097046800,-512.42,0.0002,2]
[368294582,1751097046810,-460.0,0.0002,2]
[368294583,1751097046819,-2107.7,0.0002,2]
[368294584,1751097046829,-604.17851885,0.0002,2]
[368294585,1751097046838,-477.23,0.0002,2]
[368294586,1751097046847,-460.0,0.0002,2]
[368294587,1751097046858,-929.29,0.0002,2]
[368294588,1751097046868,-460.0,0.0002,2]
[368294589,1751097046878,-1835.86,0.0002,2]
[368294590,1751097046887,-2555.55,0.0002,2]
[368294591,1751097046896,-460.0,0.0002,2]
[368294592,1751097046906,-460.0,0.0002,2]
[368294593,1751097046916,-460.0,0.0002,2]
[368294594,1751097046925,-465.7225414,0.0002,2]
[368294595,1751097046935,-502.59,0.0002,2]
[368294596,1751097046944,-460.0,0.0002,2]
[368294597,1751097046954,-460.0,0.0002,2]
[368294598,1751097046963,-460.0,0.0002,2]
[368294599,1751097046972,-460.0,0.0002,2]
[368294600,1751097046982,-1344.01,0.0002,2]
[368294601,1751097046991,-2037.07,0.0002,2]
[368294602,1751097047001,-667.02,0.0002,2]
[368294603,1751097047011,-460.0,0.0002,2]
[368294604,1751097047020,-1253.37,0.0002,2]
[368294605,1751097047029,-460.0,0.0002,2]
[368294606,1751097047039,-460.0,0.0002,2]
[368294607,1751097047048,-460.0,0.0002,2]
[368294608,1751097047057,-460.0,0.0002,2]
[368294609,1751097047067,-460.0,0.0002,2]
[368294610,1751097047077,-460.0,0.0002,2]
[368294611,1751097047086,-267.33238559,0.0002,2]
[368294612,1751097047095,-460.0,0.0002,2]
[368294613,1751097047105,-460.0,0.0002,2]
[368294614,1751097047114,-3188.43,0.0002,2]
[368294615,1751097047124,-460.0,0.0002,2]
[368294616,1751097047134,-162.54,0.0002,2]
[368294617,1751097047143,-541.05,0.0002,2]
[368294618,1751097047153,-460.0,0.0002,2]
[368294619,1751097047163,-1392.9,0.0002,2]
[368294620,1751097047172,-590.23712706,0.0002,2]
[368294621,1751097047182,-460.0,0.0002,2]
[368294622,1751097047191,-460.0,0.0002,2]
[368294623,1751097047201,-1296.65,0.0002,2]
[368294624,1751097047210,-1547.24,0.0002,2]
[368294625,1751097047219,-813.94,0.0002,2]
[368294626,1751097047229,-460.0,0.0002,2]
[368294627,1751097047239,-1660.51,0.0002,2]
[368294628,1751097047248,-393.69266514,0.00020068,2]
[368294629,1751097047258,-8642.2896708,0.00020141,2]
[368294630,1751097047268,-310.094159,0.00020187,2]
[368294631,1751097047277,-512.10269403,0.00020221,2]
[368294632,1751097047287,-226.77747217,0.00020221,2]
[368294633,1751097047296,-288.66192114,0.00020221,2]
[368294634,1751097047306,-300.0,0.00020227,2]
[368294635,1751097047316,-230.28494567,0.00020241,2]
[368294636,1751097047326,-160.0,0.00020241,2]
[368294637,1751097047335,-214.95397287,0.00020241,2]
[368294638,1751097047345,-160.0,0.00020241,2]
[368294639,1751097047355,-160.0,0.00020241,2]
[368294640,1751097047364,-160.0,0.00020241,2]
[368294641,1751097047374,-847.18566335,0.00020241,2]
[368294642,1751097047383,-160.0,0.00020241,2]
[368294643,1751097047393,-837.06984471,0.00020241,2]
[368294644,1751097047403,-160.0,0.00020241,2]
[368294645,1751097047412,-12564.78152626,0.00020241,2]
[368294646,1751097047422,-160.0,0.00020241,2]
[368294647,1751097047432,-460.0,0.00020273,2]
[368294648,1751097047442,-552.08,0.00020273,2]
[368294649,1751097047451,-460.0,0.00020273,2]
[368294650,1751097047461,-460.0,0.00020273,2]
[368294651,1751097047471,-460.0,0.00020273,2]
[368294652,1751097047480,-460.0,0.00020273,2]
[368294653,1751097047490,-460.0,0.00020273,2]
[368294654,1751097047501,-460.0,0.00020273,2]
[368294655,1751097047511,-276.23476098,0.00020273,2]
[368294656,1751097047521,-460.0,0.00020273,2]
[368294657,1751097047530,-518.60071939,0.00020273,2]
[368294658,1751097047679,-734.98,0.00020273,2]
[368294659,1751097047690,-460.0,0.00020273,2]
[368294660,1751097047699,-460.0,0.00020273,2]
[368294661,1751097047709,-460.0,0.00020273,2]
[368294662,1751097047718,-460.0,0.00020273,2]
[368294663,1751097047727,-460.0,0.00020273,2]
[368294664,1751097047737,-4169.62,0.00020273,2]
[368294665,1751097047746,-460.0,0.00020273,2]
[368294666,1751097047755,-732.48,0.00020273,2]
[368294667,1751097047765,-466.69796809,0.00020273,2]
[368294668,1751097047775,-2452.88,0.00020273,2]
[368294669,1751097047784,-649.65,0.00020273,2]
[368294670,1751097047793,-738.92,0.00020273,2]
[368294671,1751097047803,-1337.25,0.00020273,2]
[368294672,1751097047812,-460.0,0.00020273,2]
[368294673,1751097047822,-556.47,0.00020273,2]
[368294674,1751097047831,-2178.44,0.00020273,2]
[368294675,1751097047841,-460.0,0.00020273,2]
[368294676,1751097047851,-481.02,0.00020273,2]
[368294677,1751097047860,-460.0,0.00020273,2]
[368294678,1751097047869,-679.83,0.00020273,2]
[368294679,1751097047878,-1275.64,0.00020273,2]
[368294680,1751097047887,-675.36,0.00020273,2]
[368294681,1751097047897,-460.0,0.00020273,2]
[368294682,1751097047906,-647.34,0.00020273,2]
[368294683,1751097047916,-2143.18,0.00020273,2]
[368294684,1751097047925,-460.0,0.00020273,2]
[368294685,1751097047935,-460.0,0.00020273,2]
[368294686,1751097047950,-460.0,0.00020273,2]
[368294687,1751097047960,-313.12360558,0.00020273,2]
[368294688,1751097047969,-460.0,0.00020273,2]
[368294689,1751097047978,-929.5,0.00020273,2]
[368294690,1751097047989,-512.42,0.00020273,2]
[368294691,1751097047998,-460.0,0.00020273,2]
[368294692,1751097048008,-2107.7,0.00020273,2]
[368294693,1751097048018,-477.23,0.00020273,2]
[368294694,1751097048027,-460.0,0.00020273,2]
[368294695,1751097048036,-929.29,0.00020273,2]
[368294696,1751097048046,-460.0,0.00020273,2]
[368294697,1751097048055,-1835.86,0.00020273,2]
[368294698,1751097048064,-2555.55,0.00020273,2]
[368294699,1751097048073,-460.0,0.00020273,2]
[368294700,1751097048082,-460.0,0.00020273,2]
[368294701,1751097048092,-460.0,0.00020273,2]
[368294702,1751097048101,-502.59,0.00020273,2]
[368294703,1751097048111,-460.0,0.00020273,2]
[368294704,1751097048120,-460.0,0.00020273,2]
[368294705,1751097048130,-460.0,0.00020273,2]
[368294706,1751097048139,-1344.01,0.00020273,2]
[368294707,1751097048150,-2037.07,0.00020273,2]
[368294708,1751097048159,-667.02,0.00020273,2]
[368294709,1751097048169,-460.0,0.00020273,2]
[368294710,1751097048178,-1253.37,0.00020273,2]
[368294711,1751097048188,-460.0,0.00020273,2]
[368294712,1751097048198,-460.0,0.00020273,2]
[368294713,1751097048207,-460.0,0.00020273,2]
[368294714,1751097048216,-460.0,0.00020273,2]
[368294715,1751097048226,-460.0,0.00020273,2]
[368294716,1751097048236,-460.0,0.00020273,2]
[368294717,1751097048245,-460.0,0.00020273,2]
[368294718,1751097048255,-460.0,0.00020273,2]
[368294719,1751097048264,-3188.43,0.00020273,2]
[368294720,1751097048274,-460.0,0.00020273,2]
[368294721,1751097048284,-541.05,0.00020273,2]
[368294722,1751097048294,-460.0,0.00020273,2]
[368294723,1751097048304,-1392.9,0.00020273,2]
[368294724,1751097048313,-460.0,0.00020273,2]
[368294725,1751097048323,-460.0,0.00020273,2]
[368294726,1751097048332,-1296.65,0.00020273,2]
[368294727,1751097048342,-1547.24,0.00020273,2]
[368294728,1751097048351,-813.94,0.00020273,2]
[368294729,1751097048361,-500.0,0.00020273,2]
[368294730,1751097048370,-1660.51,0.00020273,2]
[368294731,1751097048380,-214.16307294,0.00020278,2]
[368294732,1751097048389,-160.0,0.00020383,3]
[368294733,1751097048400,-213.78848551,0.00020383,3]
[368294734,1751097048410,-12564.78152626,0.00020383,3]
[368294735,1751097048420,-847.18566335,0.00020383,3]
[368294736,1751097048429,-8642.2896708,0.00020383,3]
[368294737,1751097048439,-154.3521965,0.00020438,2]
[368294738,1751097048449,-1397.0,0.00020506,2]
[368294739,1751097048459,-500.0,0.00020547,14]
[368294740,1751097048468,-460.0,0.00020547,2]
[368294741,1751097048478,-552.08,0.00020547,2]
[368294742,1751097048488,-460.0,0.00020547,2]
[368294743,1751097048498,-460.0,0.00020547,2]
[368294744,1751097048507,-460.0,0.00020547,2]
[368294745,1751097048517,-460.0,0.00020547,2]
[368294746,1751097048527,-460.0,0.00020547,2]
[368294747,1751097048537,-460.0,0.00020547,2]
[368294748,1751097048547,-734.98,0.00020547,2]
[368294749,1751097048557,-452.75039927,0.00020547,2]
[368294750,1751097048566,-460.0,0.00020547,2]
[368294751,1751097048576,-460.0,0.00020547,2]
[368294752,1751097048586,-460.0,0.00020547,2]
[368294753,1751097048596,-478.61,0.00020547,2]
[368294754,1751097048606,-4169.62,0.00020547,2]
[368294755,1751097048615,-460.0,0.00020547,2]
[368294756,1751097048625,-732.48,0.00020547,2]
[368294757,1751097048634,-2452.88,0.00020547,2]
[368294758,1751097048643,-649.65,0.00020547,2]
[368294759,1751097048654,-738.92,0.00020547,2]
[368294760,1751097048663,-1337.25,0.00020547,2]
[368294761,1751097048672,-460.0,0.00020547,2]
[368294762,1751097048681,-556.47,0.00020547,2]
[368294763,1751097048690,-2178.44,0.00020547,2]
[368294764,1751097048700,-184.67396051,0.00020547,2]
[368294765,1751097048709,-481.02,0.00020547,2]
[368294766,1751097048719,-460.0,0.00020547,2]
[368294767,1751097048728,-679.83,0.00020547,2]
[368294768,1751097048738,-1275.64,0.00020547,2]
[368294769,1751097048747,-675.36,0.00020547,2]
[368294770,1751097048757,-460.0,0.00020547,2]
[368294771,1751097048766,-647.34,0.00020547,2]
[368294772,1751097048776,-2143.18,0.00020547,2]
[368294773,1751097048785,-362.13523528,0.00020547,2]
[368294774,1751097048795,-460.0,0.00020547,2]
[368294775,1751097048804,-460.0,0.00020547,2]
[368294776,1751097048813,-929.5,0.00020547,2]
[368294777,1751097048822,-512.42,0.00020547,2]
[368294778,1751097048832,-460.0,0.00020547,2]
[368294779,1751097048842,-2107.7,0.00020547,2]
[368294780,1751097048851,-477.23,0.00020547,2]
[368294781,1751097048862,-460.0,0.00020547,2]
[368294782,1751097048871,-929.29,0.00020547,2]
[368294783,1751097048881,-460.0,0.00020547,2]
[368294784,1751097048890,-1835.86,0.00020547,2]
[368294785,1751097048900,-2555.55,0.00020547,2]
[368294786,1751097048909,-460.0,0.00020547,2]
[368294787,1751097048918,-460.0,0.00020547,2]
[368294788,1751097048927,-460.0,0.00020547,2]
[368294789,1751097048937,-502.59,0.00020547,2]
[368294790,1751097048946,-460.0,0.00020547,2]
[368294791,1751097048955,-460.0,0.00020547,2]
[368294792,1751097048965,-460.0,0.00020547,2]
[368294793,1751097048976,-1344.01,0.00020547,2]
[368294794,1751097048985,-2037.07,0.00020547,2]
[368294795,1751097048994,-667.02,0.00020547,2]
[368294796,1751097049004,-433.132882,0.00020547,2]
[368294797,1751097049013,-1253.37,0.00020547,2]
[368294798,1751097049023,-460.0,0.00020547,2]
[368294799,1751097049032,-460.0,0.00020547,2]
[368294800,1751097049042,-460.0,0.00020547,2]
[368294801,1751097049051,-460.0,0.00020547,2]
[368294802,1751097049061,-529.0,0.00020547,2]
[368294803,1751097049071,-460.0,0.00020547,2]
[368294804,1751097049080,-460.0,0.00020547,2]
[368294805,1751097049090,-460.0,0.00020547,2]
[368294806,1751097049098,-3188.43,0.00020547,2]
[368294807,1751097049108,-460.0,0.00020547,2]
[368294808,1751097049117,-541.05,0.00020547,2]
[368294809,1751097049126,-460.0,0.00020547,2]
[368294810,1751097049135,-1392.9,0.00020547,2]
[368294811,1751097049145,-460.0,0.00020547,2]
[368294812,1751097049153,-460.0,0.00020547,2]
[368294813,1751097049163,-1296.65,0.00020547,2]
[368294814,1751097049172,-1547.24,0.00020547,2]
[368294815,1751097049182,-813.94,0.00020547,2]
[368294816,1751097049192,-1660.51,0.00020547,2]
[368294817,1751097049201,-3418.08,0.000206,2]
[368294818,1751097049210,-8642.2896708,0.00020624,3]
[368294819,1751097049219,-666.0,0.00020738,2]
[368294820,1751097049228,-5000.0,0.00020738,2]
[368294821,1751097049238,-500.0,0.00020738,2]
[368294822,1751097049248,-500.0,0.00020738,2]
[368294823,1751097049256,-500.0,0.00020738,2]
[368294824,1751097049265,-500.0,0.00020738,2]
[368294825,1751097049275,-207.4,0.00020738,2]
[368294826,1751097049284,-500.0,0.00020738,2]
[368294827,1751097049294,-500.0,0.00020738,2]
[368294828,1751097049303,-500.0,0.00020738,2]
[368294829,1751097049312,-500.0,0.00020738,2]
[368294830,1751097049321,-500.0,0.00020738,2]
[368294831,1751097049331,-500.0,0.00020738,2]
[368294832,1751097049340,-500.0,0.00020738,2]
[368294833,1751097049349,-500.0,0.00020738,2]
[368294834,1751097049358,-500.0,0.00020738,2]
[368294835,1751097049368,-500.0,0.00020738,2]
[368294836,1751097049377,-500.0,0.00020738,2]
[368294837,1751097049386,-500.0,0.00020738,2]
[368294838,1751097049395,-500.0,0.00020738,2]
[368294839,1751097049404,-500.0,0.00020738,2]
[368294840,1751097049413,-25000.0,0.00020738,2]
[368294841,1751097049423,-9467.15036975,0.00020738,2]
[368294842,1751097049432,-690.642,0.00020793,2]
[368294843,1751097049441,-195.1,0.00020805,3]